{"text_format":"1","workbook":"xlsx","n_sheets":10,"sheets":["Instruktion","Definitioner","Grundinformation","Namn","Nivå på datainmatning","Mata in värden","Resultat","Regiondata","Sjukhusdata","Stödflik"],"not_rendered":{"charts":0,"images":2,"macros":1,"external_links":0,"defined_names":32,"comments":0,"pivot_tables":0},"unopened":[],"bounds":{"document_bytes":16777216,"sheet_cells":100000,"rows_first":2000,"rows_last":500,"rows_between":2000,"halvings":0,"cell_chars":16384,"cell_head_chars":4096},"cells_cut":0,"cells_raw":0,"read":"whole","date_system":"1900"}

{"sheet":"Instruktion","index":0,"n_rows":25,"n_cols":2,"rows_kept":25,"cut":false,"hidden":false,"merged":[]}
[{"$error":"#VALUE!"}]
[null,"Beräkna behovet av disponibla vårdplatser - Instruktioner för användning"]
[]
[null,"Det här är Socialstyrelsens verktyg för att översiktligt beräkna vårdplatsbehovet på sjukhus, kliniker, centrumbildningar eller liknande nivåer. Syftet med filen är att få en överblick över hur verksamheternas antal disponibla vårdplatser idag möter behovet av disponibla vårdplatser. Bakgrundsdata som används i filen baseras på samtliga verksamheter i regionerna som producerar slutenvård, inklusive privata.\n\nI stödet används olika metoder för inmatning än i framtagandet av riktvärdet nationellt och regionalt. Då datakällor, definitioner och tidsperiod kan skilja sig åt kan även riktvärden för vårdplatser skilja sig åt vid jämförelse av samma vårdgivare. Får du större differens än 5–20 vårdplatser totalt för hela sjukhuset så kan detta bero på datakvalitet för den data som matas in i filen, det kan bero på beläggningsgrad, medelvårdtid för patienter som väntar över 90 dagar som kräver sluten vård, utlokaliserade till eller från den avdelningen, antal patienter som läggs in med en längre vistelsetid än 4 h på akutmottagningen, antal utlokaliserade till och från avdelningen. Ger inte felsökningen i er egen data mer jämförbart resultat i inmatningsfilen kan du testa att använda vårdtillfällen i filen istället för disponibla vårdplatser. "]
[]
[null,"Hur du använder filen"]
[null,"Filen är tänkt att fyllas i ordning från första till sista flik. Om fel uppstår är det möjligt att gå tillbaka till de föregående fliken och fylla i ny data. Det går alltid bra att gå tillbaka till instruktionsfliken och sedan till den flik du arbetade i."]
[null,"Begrepp och definitioner: I fliken \"Definitioner\" förklaras verktygets centrala begrepp."]
[null,"Steg 1: Under fliken \"Grundinformation\" fyller du i grundinformation om var du vill beräkna behovet av vårdplatser."]
[null,"Steg 2: I andra fliken \"Namn\" fyller du i namn på de sjukhus, kliniker, centrumbildningar eller liknande du vill beräkna vårdplatsbehovet för."]
[null,"Steg 3: I fliken \"Nivå på datainmatning\" väljer du mellan olika alternativ för vilken typ av vårdplatsdata du vill mata in."]
[null,"Steg 4: I fliken \"Mata in värden\" fyller du i din data baserat på dina val i fliken innan."]
[null,"Steg 5: Under \"Resultat\" får du fram en sammanställning av den data du matat in och ditt estimerade vårdplatsbehov."]
[null,"När du fyllt i en flik bör du klicka på knappen \"Tryck här för att bekräfta och gå vidare till nästa flik\" för att spara dina svar och gå vidare. Det går att återställa en enskild flik genom att klicka på knappen \"Återställ flik\". Knappen \"Återställ all data\" raderar all inmatad data från samtliga flikar."]
[]
[null,"Beräkning och resultat"]
[null,"Bilden nedan visar hur det totala behovet av disponibla vårdplatser på kort sikt tas fram i detta dokumnet. För en mer detaljerad nedbrytning av beräkningarna, se formeln nedanför bilden. Om du väljer att inte mata in antalet patienter som väntar på planerad vård,  patienter som väntar över 4h på akutmottagning, utlokaliserade patienter, överflyttningar eller återinskrivningar så antas de vara 0."]
[]
[]
[]
[]
[]
[null,"Läs mer om riktvärden och vårdplatser"]
[null,"Samtliga rapporter och metodbeskrivningar om riktvärdesberäkningar finns att finna på följande länk:"]
[null,"Länk till Socialstyrelsens sida om vårdplatser"]

{"sheet":"Definitioner","index":1,"n_rows":35,"n_cols":2,"rows_kept":35,"cut":false,"hidden":false,"merged":[]}
[{"$error":"#VALUE!"}]
[null,"Begrepp och definitioner"]
[]
[null,"Disponibla vårdplatser"]
[null,"Avser vårdplatser i sluten vård med fysisk utformning, utrustning och bemanning som säkerställer patientsäkerhet och arbetsmiljö. Data som matas in för antalet disponibla vårdplatser avser hur många man idag kan tillhandahålla, i genomsnitt per år."]
[]
[null,"Vårdtillfällen"]
[null,"Istället för att ange disponibla vårdplatser kan du välja att ange antalet vårdtillfällen per enhet och år. Antalet disponibla vårdplatser beräknas då utifrån antal vårdtillfällen, medelvårdtid och beläggningsgrad."]
[]
[null,"Medelvårdtid"]
[null,"Medelvårdtid avser den genomsnittliga vårdtiden på enheten för det senaste året. Om du inte har tillgång till medelvårdtiden kan denna lämnas tom. Då används istället data från patientregistret 2025: sjukhusets medelvårdtid i första hand, och regionens medelvårdtid i andra hand. Modellen tar inte hänsyn till att medelvårdtiden kan skilja sig för utlokaliserade patienter på egen/annan enhet."]
[]
[null,"Beläggningsgrad"]
[null,"Avser hur stor andel av de disponibla vårdplatserna som i genomsnitt är belagda. En vårdplats anses belagd om den upptas av enhetens egna patient eller av en utlokaliserad patient som vårdas på enheten även om det medicinska ansvaret ligger på en annan enhet. Denna siffra anges i procent och är under 100% om inte samtliga disponibla vårdplatser används men kan vara över 100% vid överbeläggningar."]
[]
[null,"Rekommenderad beläggningsgrad"]
[null,"Socialstyrelsen har tagit fram riktvärden för beläggningsgrad som är 85% för oplanerad vård och 95% för planerad vård. Beroende på andel planerad/oplanerad vård som utförs kan därför riktvärdet för beläggningsgrad ligga mellan 85 och 95%. Önskvärd beläggningsgrad baseras på riktvärdet för beläggningsgrad för valt sjukhus, region eller inmatad andel planerad/oplanerad vård, beroende på användarens val. För intensivvårdsavdelningar (IVA) beror riktvärdet för beläggningsgrad på avdelningsstorlek och är 50% för avdelningar med 1 till 4 vårdplatser kategori I-III, 65% för 5 till 8 vårdplatser kategori I-II, 70% för 5 till 8 vårdplatser kategori III och 80% för 9 eller fler vårdplatser kategori I-III. Storlek på IVA behöver anges för att kunna beräkna det totala behovet av disponibla vårdplatser."]
[]
[null,"Patienter som väntar över 90 dagar på vård som kräver slutenvård "]
[null,"Avser de patienter som väntar över vårdgarantins gräns för en vårdåtgärd som kräver att de skrivs in i slutenvård. För att detta ska kunna användas i beräkningarna behöver det anges per sjukhus/verksamhetsområde/centrumbildning/klinik som du matar in för. Rutan kan lämnas tom om du inte har tillgång till data eller om antalet är noll för vissa enheter. Anges annars som antal vårdtillällen per år."]
[]
[null,"Patienter som väntar över 4h på akutmottagning och sedan skrivs in i slutenvård "]
[null,"För att detta ska kunna användas i beräkningarna behöver det anges per sjukhus/verksamhetsområde/centrumbildning/klinik som du matar in för. Varje sådant fall gör att behovet räknas upp med ett halvt vårddygn. Rutan kan lämnas tom om du inte har tillgång till data eller om antalet är noll för vissa enheter. Anges annars som antal vårdtillfällen per år."]
[]
[null,"Utlokaliserade patienter på egen enhet från andra enheter"]
[null,"Antalet vårdtillfällen där patienten vårdas på din enhet trots att den skulle vårdats på annan enhet eller tillhör ett annat patientflöde. Anges i antal vårdtillfällen per år. Dessa ska räknas in i beläggningsgraden som matas in. Eftersom patienterna är hemmahörande på annan enhet dras antalet bort från det beräknade riktvärdet för enheten. Vårdbehovet beräknas utifrån genomsnittlig medelvårdtid  för utlokaliserade patienter på egen enhet från andra enheter. Om du inte har tillgång till medelvårdtiden för utlokaliserade patienter kan denna ruta lämnas tom. Då används istället enhetens medelvårdtid. Om enhetens medelvårdtid inte är angiven används data från patientregistret 2025: sjukhusets medelvårdtid i första hand, och regionens medelvårdtid i andra hand."]
[]
[null,"Utlokaliserade patienter från egen enhet till andra enheter "]
[null,"Antalet vårdtillfällen där patienten vårdas på annan enhet trots att den skulle vårdats på din enhet eller tillhör ditt patientflöde. Anges i antal vårdtillfällen per år. Dessa ska inte räknas in i beläggningsgraden som matas in. Eftersom patienterna är hemmahörande på vald enhet adderas antalet till det beräknade riktvärdet för enheten. Vårdbehovet beräknas utifrån genomsnittlig medelvårdtid  för utlokaliserade patienter från egen enhet till andra enheter. Om du inte har tillgång till medelvårdtiden för utlokaliserade patienter kan denna ruta lämnas tom. Då används istället enhetens medelvårdtid. Om enhetens medelvårdtid inte är angiven används data från patientregistret 2025: sjukhusets medelvårdtid i första hand, och regionens medelvårdtid i andra hand."]
[]
[null,"Återinskrivningar på IVA inom 72 timmar"]
[null,"Att en patient återinskrivs på IVA kort efter utskrivning kan vara en indikation på för tidig utskrivning. En uppjustering av vårdplatsbehovet görs utifrån förekomsten av återinskrivningar inom 72 timmar, genom att vårdtid motsvarande en dag adderas till slutenvårdsproduktionen för varje registrerad återinläggning."]
[]
[null,"Överflyttningar till annan IVA på grund av resursbrist"]
[null,"Överflyttning på grund av resursbrist innebär betydande patientsäkerhetsrisker och återspeglar ett behov av utökad vårdplatskapacitet på den avdelning som flyttar patienten vid aktuellt tillfälle. Vårdplatsbehovet på aktuell avdelning justeras därför upp utifrån detta, genom att vårdtid motsvarande en dag adderas till slutenvårdsproduktionen för varje registrerad överflyttning."]

{"sheet":"Grundinformation","index":2,"n_rows":11,"n_cols":2,"rows_kept":11,"cut":false,"hidden":false,"merged":[]}
[{"$error":"#VALUE!"},"\nSteg 1: Mata in grundläggande information om din önskade vårdnivå"]
[null,"Välj region:"]
[]
[]
[null,"Välj sjukhus (valfritt):"]
[]
[]
[null,"För vilken nivå vill du göra inmatningen? Exempelvis sjukhus, klinik, verksamhetsområde, centrumbildning, enhet, avdelning"]
[]
[]
[null,{"$f":"CONCATENATE(\"Hur många \",EnhetPlural,\" vill du mata in för? (Ange en siffra)\")","v":"Hur många enheter vill du mata in för? (Ange en siffra)"}]

{"sheet":"Namn","index":3,"n_rows":3,"n_cols":4,"rows_kept":3,"cut":false,"hidden":false,"merged":[]}
[{"$error":"#VALUE!"},null,"\nSteg 2: Mata in namn"]
[]
[null,null,{"$f":"CONCATENATE(\"Namn på \",EnhetSingular)","v":"Namn på enhet"},"Är detta en intensivvårdsavdelning (IVA)?\nVälj i så fall \"Ja\". Annars kan du lämna blankt eller svara \"Nej\". Notera att data för IVA matas in separat."]

{"sheet":"Nivå på datainmatning","index":4,"n_rows":25,"n_cols":3,"rows_kept":25,"cut":false,"hidden":false,"merged":[]}
[{"$error":"#VALUE!"},null,"\nSteg 3: Välj vilken data du vill mata in"]
[null,null,"Se fliken Instruktioner för ytterligare information om data och definitioner."]
[]
[null,null,"Hur vill du ange antalet vårdplatser?"]
[]
[]
[null,null,"Vill du ange andel planerad/oplanerad vård? (Påverkar ditt riktvärde för beläggningsgrad - svarar du nej används sjukhusets eller regionens riktvärde) "]
[]
[]
[null,null,{"$f":"IF(ISBLANK(Grundinformation!$B$9),\"Vill du ange antal patienter som väntar på vård över 90 dagar? (Anges per vald enhet som genomsnittligt antal per månad under ett år)\",IFERROR(CONCATENATE(\"Vill du ange antal patienter som väntar på vård över 90 dagar? (Anges per \",Grundinformation!$B$9,\" som genomsnittligt antal per månad under ett år)\"),\"Vill du ange antal patienter som väntar på vård över 90 dagar? (Anges per vald enhet som genomsnittligt antal per månad under ett år)\"))","v":"Vill du ange antal patienter som väntar på vård över 90 dagar? (Anges per vald enhet som genomsnittligt antal per månad under ett år)"}]
[]
[]
[null,null,{"$f":"IF(ISBLANK(Grundinformation!$B$9),\"Vill du ange antal patienter som väntar >4h på akutmottagningar som sedan skrivs in? (Anges per vald enhet och år)\",IFERROR(CONCATENATE(\"Vill du ange antal patienter som väntar >4h på akutmottagningar som sedan skrivs in? (Anges per \",Grundinformation!$B$9,\" och år)\"),\"Vill du ange antal patienter som väntar >4h på akutmottagningar som sedan skrivs in? (Anges per vald enhet och år)\"))","v":"Vill du ange antal patienter som väntar >4h på akutmottagningar som sedan skrivs in? (Anges per vald enhet och år)"}]
[]
[]
[null,null,{"$f":"IF(ISBLANK(Grundinformation!$B$9),\"Vill du ange antal utlokaliserade patienter på egen enhet från andra enheter? (Anges per vald enhet och år)\",IFERROR(CONCATENATE(\"Vill du ange antal utlokaliserade patienter på egen enhet från andra enheter? (Anges per \",Grundinformation!$B$9,\" och år)\"),\"Vill du ange antal utlokaliserade patienter på egen enhet från andra enheter? (Anges per vald enhet och år)\"))","v":"Vill du ange antal utlokaliserade patienter på egen enhet från andra enheter? (Anges per vald enhet och år)"}]
[]
[]
[null,null,{"$f":"IF(ISBLANK(Grundinformation!$B$9),\"Vill du ange antal utlokaliserade patienter från egen enhet till andra enheter? (Anges per vald enhet och år)\",IFERROR(CONCATENATE(\"Vill du ange antal utlokaliserade patienter från egen enhet till andra enheter? (Anges per \",Grundinformation!$B$9,\" och år)\"),\"Vill du ange antal utlokaliserade patienter från egen enhet till andra enheter? (Anges per vald enhet och år)\"))","v":"Vill du ange antal utlokaliserade patienter från egen enhet till andra enheter? (Anges per vald enhet och år)"}]
[]
[]
[null,null,{"$f":"IF(ISBLANK(Grundinformation!$B$9),\"Vill du ange antal återinskrivningar på IVA inom 72 timmar? (Anges per vald enhet och år)\",IFERROR(CONCATENATE(\"Vill du ange antal återinskrivningar på IVA inom 72 timmar (Anges per \",Grundinformation!$B$9,\" och år)\"),\"Vill du ange antal återinskrivningar på IVA inom 72 timmar? (Anges per vald enhet och år)\"))","v":"Vill du ange antal återinskrivningar på IVA inom 72 timmar? (Anges per vald enhet och år)"}]
[]
[]
[null,null,{"$f":"IF(ISBLANK(Grundinformation!$B$9),\"Vill du ange antal överflyttningar till annan IVA på grund av resursbrist? (Anges per vald enhet och år)\",IFERROR(CONCATENATE(\"Vill du ange antal överflyttningar till annan IVA på grund av resursbrist? (Anges per \",Grundinformation!$B$9,\" och år)\"),\"Vill du ange antal överflyttningar till annan IVA på grund av resursbrist? (Anges per vald enhet och år)\"))","v":"Vill du ange antal överflyttningar till annan IVA på grund av resursbrist? (Anges per vald enhet och år)"}]

{"sheet":"Mata in värden","index":5,"n_rows":3,"n_cols":16,"rows_kept":3,"cut":false,"hidden":false,"merged":[[0,0,0,1]]}
[{"$error":"#VALUE!"},null,{"$f":"IF(NOT(ISBLANK(Grundinformation!D9)),CONCATENATE(\"Steg 4: Mata in din data för \",LOWER(Grundinformation!D9)),\"Steg 4: Mata in din data\")","v":"Steg 4: Mata in din data"}]
[null,null,"Genomsnittlig beläggningsgrad måste fyllas i för alla enheter. Övriga data matas in för de enheter där det är relevant. Tomma rutor tolkas som noll, eller för medelvårdtid som regionens/sjukhusets genomsnitt.\n\nSe fliken Instruktioner för ytterligare information om data och definitioner.\n"]
[null,null,{"$f":"CONCATENATE(\"Namn på \",EnhetSingular)","v":"Namn på enhet"},"Genomsnittligt antal disponibla vårdplatser (genomsnitt per år)","Medelvårdtid i dagar (lämnas denna tom används sjukhusets/regionens medelvårdtid)","Genomsnittlig beläggningsgrad för året (%)","Genomsnittlig andel planerad vård (%)","Patienter som väntar över 90 dagar på åtgärd som kräver slutenvård (genomsnittligt antal per månad under ett år)","Patienter som väntar över 4h på akutmottagning och sedan skrivs in (antal per år)","Antal utlokaliserade patienter på egen enhet från andra enheter (antal per år)","Medelvårdtid i dagar för utlokaliserade patienter på egen enhet från andra enheter (lämnas denna tom används enhetens/sjukhusets/regionens medelvårdtid)","Antal utlokaliserade patienter från egen enhet till andra enheter (antal per år)","Medelvårdtid i dagar för utlokaliserade patienter från egen enhet till andra enheter (lämnas denna tom används enhetens/sjukhusets/regionens medelvårdtid)","Antal återinskrivningar på IVA inom 72 timmar (antal per år; anges enbart för IVA)","Antal överflyttningar till annan IVA på grund av resursbrist (antal per år; anges enbart för IVA)","Avdelningsstorlek (anges enbart för IVA)"]

{"sheet":"Resultat","index":6,"n_rows":13,"n_cols":16,"rows_kept":13,"cut":false,"hidden":false,"merged":[[1,8,4,9],[1,6,4,7],[1,4,4,5],[0,0,0,1]]}
[{"$error":"#VALUE!"}]
[null,null,null,null,"Steg 5: Resultat\n\nObservera att behovet av disponibla vårdplatser som presenteras motsvarar ett genomsnitt över året, baserat på inmatad data."]
[]
[]
[]
[]
[]
[]
[null,null,null,null,{"$f":"CONCATENATE(\"Namn på \",EnhetSingular)","v":"Namn på enhet"},"Genomsnittligt antal disponibla vårdplatser","Genomsnittlig beläggningsgrad","Rekommenderad beläggningsgrad","Behov av disponibla vårdplatser för att nå rekommenderad beläggningsgrad","Disponibla vårdplatser för att eliminera väntetider över 90 dagar för åtgärder som kräver slutenvård","Disponibla vårdplatser för att minska väntetider över 4 timmar på akuten för patienter som skrivs in","Disponibla vårdplatser på egen enhet som upptas av patienter som utlokaliseras från annan enhet (subtraheras från behov)","Disponibla vårdplatser för att vårda patienter som utlokaliseras från egen enhet till andra enheter","Disponibla vårdplatser för att undvika återinskrivningar på IVA inom 72 timmar","Disponibla vårdplatser för att undvika överflyttningar till annan IVA på grund av resursbrist","Totalt behov av disponibla vårdplatser – med hänsyn till samtliga inmatade parametrar"]
[null,null,null,"a"]
[null,null,null,"b"]
[]
[null,null,null,"d"]

{"sheet":"Regiondata","index":7,"n_rows":24,"n_cols":4,"rows_kept":24,"cut":false,"hidden":true,"merged":[[0,1,0,3]]}
[null,"Regiondata\nI denna flik finns data på region-nivå. Medelvårdtiden anges i dagar."]
[]
[null,"Region","Medelvårdtid","Riktvärde beläggningsgrad"]
[null,"Blekinge",3.19558636193331,0.86882300909999999]
[null,"Dalarna",4.1845527930255102,0.87064751100000004]
[null,"Gotland",3.48517067711248,0.86666976740000001]
[null,"Gävleborg",3.3389332906222502,0.86017133619999997]
[null,"Halland",2.8390952994204799,0.86337228119999998]
[null,"Jämtland Härjedalen",3.7156856634016,0.86259980260000002]
[null,"Jönköping",3.3438116227815802,0.86786413659999995]
[null,"Kalmar",3.1366952286461598,0.88144127510000003]
[null,"Kronoberg",3.98697342324474,0.86200762389999996]
[null,"Norrbotten",3.2054962354551702,0.85823927099999997]
[null,"Skåne",4.0921303752745297,0.86899824349999999]
[null,"Stockholm",4.2514970038490096,0.88630986680000001]
[null,"Södermanland",2.6322585034013599,0.85955279080000002]
[null,"Uppsala",4.6922678488100802,0.88609341549999998]
[null,"Värmland",3.3437801608579099,0.85861456810000003]
[null,"Västerbotten",4.4380788982259602,0.87200505399999995]
[null,"Västernorrland",3.4025910064239802,0.85824127819999996]
[null,"Västmanland",4.5472839919624901,0.86940850280000004]
[null,"Örebro",2.80467625030201,0.8653217903]
[null,"Östergötland",3.1851984265734301,0.86762230939999996]
[null,"Västra Götaland",3.4241628059530198,0.87047877299999998]

{"sheet":"Sjukhusdata","index":8,"n_rows":150,"n_cols":7,"rows_kept":150,"cut":false,"hidden":true,"merged":[[1,1,1,3],[1,5,1,6]]}
[]
[null,"Sjukhusdata\nI denna flik finns data på sjukhus-nivå. Medelvårdtiden anges i dagar.",null,null,null,"Beiga kolumner innehåller formler och bör INTE redigeras."]
[]
[null,"Sjukhus","Region","Vårdplatsbehov planerad vård","Vårdplatsbehov oplanerad vård","Medelvårdtid","Riktvärde beläggningsgrad"]
[null,"Blekingesjukhuset","Blekinge",51.8390001034603,249.67358581788901,3.19558636193331,{"$f":"(((D5/(SUM(D5,E5))*0.95)+(E5/SUM(D5,E5)*0.85)))","v":0.86719298050031746}]
[null,"Avesta lasarett","Dalarna",7.5270367700072098,30.865431103948399,6.4603960396039604,0.86960550385747237]
[null,"Borlänge sjukhus","Dalarna",0.64599855803893003,2.95890410958904,22.4,0.86791999999999991]
[null,"Falu lasarett","Dalarna",47.693924632042702,218.01131345689001,4.4059717607973399,0.86794993767344508]
[null,"Ludvika lasarett","Dalarna",11.5472242249459,20.844480257856599,11.153203342618401,0.88564870823971809]
[null,"Mora lasarett","Dalarna",7.7689849585814503,57.944560838033901,1.75055279159757,0.86182250153206863]
[null,"Visby lasarett","Gotland",17.589181499486202,102.534923448832,3.48517067711248,0.8646425078522364]
[null,"Bollnäs närsjukhus","Gävleborg",5.1172033576780001,37.673843674456101,1.3590839041095899,0.86195858412586901]
[null,"Hudiksvalls sjukhus","Gävleborg",6.3177132409005603,111.257974751544,3.3794838373305498,0.85537331598800126]
[null,"Länssjukhuset Gävle-Sandviken","Gävleborg",30.243572974822001,265.410991136181,4.3098627034678003,0.86022936110110826]
[null,"Capio Movement Halmstad","Halland",5.86301369863014,6.44641418211E-3,1.1557703240477499,0.94989017023613387]
[null,"Hallands sjukhus","Halland",40.503515274527402,389.294182111201,3.1163089927212999,0.85942385580958036]
[null,"Hallands sjukhus Halmstad","Halland",3.0457101658255201,null,12.0011363636364,0.95]
[null,"Palliativ vårdavdelning Falkenberg","Halland",3.67700072098053,1.7727639000805799,12.0283018867925,0.91747081712062251]
[null,"Strömsunds sjukhus","Jämtland",4.6142754145640001E-2,3.6615632554391602,8,0.8512445095168375]
[null,"Östersunds sjukhus","Jämtland",19.327929861370201,188.759548751007,3.7118672014260299,0.85928836756072868]
[null,"Aleris Specialistklinik Jönköping","Jönköping",2.2523431867339601,null,0.82558139534884001,0.95]
[null,"Höglandssjukhuset","Jönköping",14.004960473189399,114.302852538276,2.5309360126917002,0.86091512679117843]
[null,"Länssjukhuset Ryhov","Jönköping",60.690809910944203,229.46207896857399,4.4583513163573603,0.87091683806606701]
[null,"Värnamo sjukhus","Jönköping",7.5271274257198098,85.696341659951699,2.2608695652173898,0.8580742837608869]
[null,"Länssjukhuset i Kalmar","Kalmar",70.052873553202403,170.07103948428701,3.5082681726035299,0.87917363484005251]
[null,"Oskarshamns sjukhus","Kalmar",8.7621438801940705,19.163577759871099,2.4610389610389598,0.88137660681836405]
[null,"Västerviks sjukhus","Kalmar",22.101988971150298,65.377018533440804,2.5488097660223801,0.87526547751469441]
[null,"Centrallasarettet i Växjö","Kronoberg",25.955090788923201,198.893730862208,4.5191343600637301,0.86154335192789855]
[null,"Ljungby lasarett","Kronoberg",4.92886195753794,53.154971796938,2.4163479623824502,0.85848577244121405]
[null,"Arvidsjaurs sjukhem","Norrbotten",0.11535688536410001,3.10394842868654,4.44444444444445,0.85358328502924607]
[null,"Gällivare Sjukhus","Norrbotten",3.24690690468401,38.815278001611603,2.7505714285714302,0.85771930158149734]
[null,"Haparanda sjukhem","Norrbotten",6.9214131218459998E-2,4.83158742949235,12,0.85141230226037601]
[null,"Jokkmokks sjukhem","Norrbotten",0.40086517664023003,3.5745366639806599,6.95,0.86008363915678077]
[null,"Kalix sjukhus","Norrbotten",0.23971160778659001,30.5209669621273,2.3088888888888901,0.85077927932324948]
[null,"Kiruna Sjukhus","Norrbotten",0.63446286950251995,26.037066881547101,2.8205128205128198,0.85237880194883653]
[null,"Pajala sjukhem","Norrbotten",0.21917808219178,3.9709911361804999,4.2222222222222197,0.85523076923076913]
[null,"Piteå Älvdals sjukhus","Norrbotten",12.1969725923766,63.132763900080597,2.5938228055783399,{"$f":"(((D37/(SUM(D37,E37))*0.95)+(E37/SUM(D37,E37)*0.85)))","v":0.86619144465426068}]
[null,"Sunderby sjukhus","Norrbotten",16.025585047821099,178.90198227236101,3.7913022888713499,0.85822130254234263]
[null,"Överkalix sjukhem","Norrbotten",0.13842826243691,4.2256244963738903,4,0.85317201166180745]
[null,"Övertorneå sjukhem","Norrbotten",0.27974044700792999,4.4448025785656702,6.0625,0.85592100538599636]
[null,"Capio Ortho Center Skåne AB","Skåne",25.785147801009401,null,7.07917656373714,0.95]
[null,"Centralsjukhuset i Kristianstad","Skåne",34.8452750577339,246.47629331184501,3.5745909090909098,0.86238627925319855]
[null,"Helsingborgs Lasarett AB","Skåne",38.617527927410599,332.70017727638998,4.8389809674861199,0.86040013104309554]
[null,"Lasarettet Trelleborg","Skåne",15.3190899365442,52.448025785656696,2.8470525756771101,0.87260549201967219]
[null,"Lasarettet i Landskrona","Skåne",4.9415258428389102,47.558420628525397,1.3699085619285101,0.8594124397736943]
[null,"Lasarettet i Ystad","Skåne",14.081378371029199,84.866462530217603,4.3748622047244101,0.86423111231409566]
[null,"Perituskliniken AB","Skåne",0.84210526315790002,null,1.0977443609022599,0.95]
[null,"Simrishamns sjukhus","Skåne",0.93150684931507,36.918614020950898,5.5689655172413799,0.85246104061994377]
[null,"Sjukhuset i Hässleholm","Skåne",8.08277038829657,41.991941982272401,1.80794430794431,0.86614142149930173]
[null,"Skånes universitetssjukhus Lund","Skåne",126.999855803893,420.67474617244198,5.0728257113235804,0.87318892556740835]
[null,"Skånes universitetssjukhus Malmö","Skåne",100.769326654853,551.05676067687398,4.7023597256857901,0.86545954183382812]
[null,"Specialist Center Skåne AB","Skåne",0.52487382840662999,null,1,0.95]
[null,"Ängelholms sjukhus","Skåne",14.200321863408201,27.6599516518936,2.1729977116704799,0.88392314638894409]
[null,"AccessCare i Vallentuna AB, Karolinska sjkh Solna","Stockholm",2.5775870356362098,2.5850120870265898,14.590163934426201,0.89992808805008906]
[null,"Aleris specialistvård Sabbatsberg","Stockholm",2.8961652085800001E-3,null,1,0.95]
[null,"Blackebergs sjukhus","Stockholm",76.166248820445702,20.290088638195002,6.9537281861449003,0.92896448364847439]
[null,"Capio Geriatrik Vårberg","Stockholm",17.608684468166501,13.089443996776801,6.6086956521739202,0.90736077522861147]
[null,"Capio Kirurgkliniken Stockholm","Stockholm",0.45469793774706002,null,1.03289473684211,0.95]
[null,"Capio S:t Görans sjukhus","Stockholm",48.513509419104899,397.46240128928298,2.3101075713694699,0.86087805602370904]
[null,"Carema Rehabcentrum i Saltsjöbaden","Stockholm",18.5644189869979,0.32554391619661999,7.4018475750577402,0.94827663019845554]
[null,"Carlakliniken Sophiahemmet Stockholm","Stockholm",0.55316755483878,null,0.37598425196849999,0.95]
[null,"Carlakliniken Uroclinic","Stockholm",0.20273156460059999,null,0.74468085106382997,0.95]
[null,"Dalengeriatriken, Capio Legevisitten AB","Stockholm",77.814166824127696,67.671232876712295,7.40165289256199,0.9034858941063062]
[null,"Danderyds sjukhus","Stockholm",74.487113721924104,481.667751813054,3.2103669953813498,0.86339323241383015]
[null,"Danviksgeriatriken Familjeläkarna i Saltsjöbaden AB","Stockholm",15.9347009776072,12.4705882352941,10.113970588235301,0.906097654412791]
[null,"Ersta sjukhus","Stockholm",88.465155416301201,45.964157937147498,4.3302395803799296,0.91580793519617543]
[null,"Furuhöjdens rehabiliteringshem","Stockholm",33.749013175582803,null,5.8705289672544101,0.95]
[null,"Handengeriatriken, Capio Legevisitten AB","Stockholm",47.6506061767669,32.825141015310201,8.3730279898218907,0.90921113855959079]
[null,"Jakobsbergs sjukhus","Stockholm",7.4778985685535799,2.71071716357776,12.0654205607477,{"$f":"(((D69/(SUM(D69,E69))*0.95)+(E69/SUM(D69,E69)*0.85)))","v":0.92339464717440367}]
[null,"Karolinska universitetssjukhuset Huddinge","Stockholm",101.18379593049001,416.67800161160397,3.0865889212828002,0.86953876428242716]
[null,"Karolinska universitetssjukhuset Solna","Stockholm",45.159661971634101,2.22465753424658,8.1814960629921298,0.94530507653703777]
[null,"Lidingö sjukhus","Stockholm",5.0827699410579203,0.76067687348912005,17.205882352941199,0.93698239416511087]
[null,"Långbro sjukhus","Stockholm",11.2631864961677,0.48992747784044999,9.9717948717948701,0.94583150917345038]
[null,"Mälargården","Stockholm",10.4667410638082,null,3.9239956568946801,0.95]
[null,"Nacka Närsjukhus","Stockholm",31.075852688063499,34.594681708299802,2.7661768497035299,0.89732084636391263]
[null,"Nacka kommun Hallens äldrecentrum","Stockholm",8.0889894275639698,1.98871877518131,11.1274900398406,0.93026616036928356]
[null,"Norrtälje sjukhus","Stockholm",30.936643862006001,90.573279613215206,6.7350630517023999,0.87546017887034122]
[null,"Nya Karolinska Solna","Stockholm",193.49279758522999,358.55600322320697,3.5670048051254701,0.88504994437119933]
[null,"Nynäshamns sjukhus","Stockholm",7.1709050564441004,8.3352135374697909,5.7715617715617702,0.89624564821307795]
[null,"Ortho o Spine Center","Stockholm",2.2126702193551302,null,0.99869281045752001,0.95]
[null,"Ortho o Spine Center","Stockholm",0.51404008236883003,null,0.99431818181817999,0.95]
[null,"Ortho o Spine Center","Stockholm",8.5486471479780608,0.29653505237712002,1.0685673042223001,0.94664749639227086]
[null,"Ortopediska Huset","Stockholm",4.3616248041214902,6.44641418211E-3,1.0196343940419801,0.9498524196639675]
[null,"Rehab Station Stockholm","Stockholm",27.1225871783518,3.1619661563255401,11.8694550063371,0.9395591454779525]
[null,"Rehabcenter Mösseberg","Stockholm",6.3860442849189196,null,4.9662162162162202,0.95]
[null,"Ryggkirurgiskt Centrum AB","Stockholm",4.8713498808315796,0.10314262691378,0.95840455840455996,0.94792656986108259]
[null,"S:t Eriks sjukhus","Stockholm",3.04097346900901,6.2046736502820297,1.80412371134021,0.88289086669405781]
[null,"Sabbatsbergs sjukhem","Stockholm",45.009303506541897,30.3368251410153,7.3410486537553199,0.90973671682201429]
[null,"Sjukhem NÖSO","Stockholm",12.8358042044266,3.0942788074133798,16.7878787878788,0.93057587769559291]
[null,"Sollentuna sjukhus","Stockholm",84.153872465709298,78.723609991941998,6.8482205986330396,0.90166697765456283]
[null,"Sophiahemmet","Stockholm",9.0563086072296901,0.40612409347300998,0.99936081815276001,0.94570803717903473]
[null,"Stockholms sjukhem","Stockholm",113.940931635955,11.8485092667204,8.2895069532237695,0.94058068055498578]
[null,"Stora Sköndals sjukhus","Stockholm",5.5316755483878204,17.627719580983101,13.6428571428571,0.87388523326057199]
[null,"Södersjukhuset","Stockholm",55.395744751204901,495.22742949234498,2.7870013113798602,0.86006055453937402]
[null,"Södertälje sjukhus","Stockholm",34.771134494373896,141.27207091055601,4.3912509144111196,0.86975147772070749]
[null,"Södertälje Ögonklinik","Stockholm",0.44890560732989998,null,1.1071428571428601,0.95]
[null,"The Faculty","Stockholm",0.17376991251480001,null,0.45112781954886999,0.95]
[null,"Vårdgivare Bromma sjukhus","Stockholm",6.2644053461585596,1.9339242546330002E-2,1.0018527095877701,0.94969223379032475]
[null,"Kullbergska sjukhuset","Södermanland",3.8589857030050698,43.461724415793697,1.57912457912458,0.85815496152385928]
[null,"Mälarsjukhuset","Södermanland",30.3899343270113,273.10775181305399,3.12510918674699,0.86001323427322141]
[null,"Nyköpings lasarett","Södermanland",10.890795403381301,123.775406929895,2.8500692041522502,{"$f":"(((D101/(SUM(D101,E101))*0.95)+(E101/SUM(D101,E101)*0.85)))","v":0.8580872521944507}]
[null,"Specialistcenter Eskilstuna","Södermanland",2.9127613554434002,null,1.36671177266576,0.95]
[null,"Akademiska sjukhuset","Uppsala",227.46135090152899,417.706752618856,5.2422980985483596,0.88525613706883166]
[null,"Aleris Art Clinic Uppsala","Uppsala",0.23936553713049999,null,0.77570093457944,0.95]
[null,"Elisabethsjukhuset","Uppsala",1.4109068912348901,1.1345688960515701,0.99841521394611998,0.90542802246565279]
[null,"Lasarettet i Enköping","Uppsala",6.6323653847253699,56.148267526188597,1.6623695518723101,0.86056434934980153]
[null,"Specialistcenter Uppsala AB, S:t Johanniskliniken","Uppsala",0.29704397981254999,0,0.99038461538461997,0.95]
[null,"Centralsjukhuset i Karlstad","Värmland",24.316558390725099,371.30443190975001,3.0815491235222199,0.85614642776467875]
[null,"FrykCenter Rehabilitering","Värmland",10.387887527036799,0.16438356164383999,16.9107981220657,0.94844219732167245]
[null,"Kristinehamns sjukhus","Värmland",0.19033886085075999,11.8646253021757,6,0.85157892514881584]
[null,"Sjukhuset i Arvika","Värmland",5.5633515350313401,37.498340048348098,1.8318005181347199,0.8629194913865823]
[null,"Sjukhuset i Säffle","Värmland",1.730353280461E-2,12.0451248992748,6,0.8501434498277195]
[null,"Sjukhuset i Torsby","Värmland",2.44645055291282,51.878195004029003,1.6421745788667701,0.85450338981107299]
[null,"Axlagården Umeå hospice","Västerbotten",2.3907714491708698,6.1821112006446404,23.0277777777778,0.87788760265162757]
[null,"Dorotea Sjukstuga","Västerbotten",null,1.08299758259468,null,0.85]
[null,"Lycksele lasarett","Västerbotten",9.5051748562919496,41.936470588235302,2.52496984318456,0.86847758712644985]
[null,"Norrlands universitetssjukhus","Västerbotten",106.421220066012,282.24232070910602,4.7184336129592097,0.87738132315003725]
[null,"Skellefteå lasarett","Västerbotten",7.6263773993134896,110.47851732473799,2.9659072305593499,0.85645729156029671]
[null,"Sorsele Sjukstuga","Västerbotten",4.0374909877429997E-2,1.94037066881547,3.5,0.85203836930455623]
[null,"Storumans Sjukstuga","Västerbotten",0.15861571737562999,4.18372280419017,3.9285714285714302,0.8536527718091963]
[null,"Tärnaby Sjukstuga","Västerbotten",3.7490987743329998E-2,0.88960515713135002,2.6,0.85404391582799621]
[null,"Vilhelmina Sjukstuga","Västerbotten",0.51045421773611999,5.1925866236905698,7.08,0.85895056219882204]
[null,"Åsele Sjukstuga","Västerbotten",0.13554434030281001,1.97260273972603,5.875,0.85642954856361142]
[null,"Länssjukhuset i Sundsvall - Härnösand","Västernorrland",24.038454106578499,272.90797743755002,3.54989035087719,0.85809521568640434]
[null,"Sollefteå sjukhus","Västernorrland",1.5317279911815,31.306591458501199,2.1943359375,0.85466445304403749]
[null,"Örnsköldsviks sjukhus","Västernorrland",2.3766937098694099,73.491764705882403,3.3028571428571398,0.8531326505895841]
[null,"Ainnova Kirurgi AB, Urologi Ainnova Kirurgi","Västmanland",0.21917808219178,null,3.3043478260869601,0.95]
[null,"Västmanlands sjukhus Köping","Västmanland",11.0892840948217,63.676067687348898,7.8037190082644701,0.86483211652254433]
[null,"Västmanlands sjukhus Sala","Västmanland",4.67975253900563,12.061240934730099,1.6907216494845401,0.87795385200016662]
[null,"Västmanlands sjukhus Västerås","Västmanland",62.971257282845102,301.44473811442401,5.0360085632730698,0.86728004754955856]
[null,"Art Clinic Göteborg","Västra Götaland",2.7339581831290598,null,0.92128279883382003,0.95]
[null,"Capio Gastro Center Göteborg AB, Mottagning","Västra Götaland",0.87959625090122995,null,1.0099337748344399,0.95]
[null,"Capio Ortho Center Göteborg AB","Västra Götaland",1.8226387887527,null,1.0112000000000001,{"$f":"(((D133/(SUM(D133,E133))*0.95)+(E133/SUM(D133,E133)*0.85)))","v":0.95}]
[null,"Capio Spine Center Göteborg","Västra Götaland",2.5296371287327899,null,1.0172612197928701,0.95]
[null,"Carlanderska sjukhuset","Västra Götaland",8.1268925739005091,1.9339242546330002E-2,1.0067881386209401,0.94976259891711778]
[null,"Hospice Gabriel","Västra Götaland",3.8211968276856498,null,14.8876404494382,0.95]
[null,"Norra Älvsborgs Länssjukhus och Uddevalla sjukhus","Västra Götaland",52.284356077420199,453.01118452860601,3.6579747106729501,0.86034728230823354]
[null,"Sahlgrenska universitetssjukhuset","Västra Götaland",308.58600828245301,845.23800161160398,3.7899737978896701,0.87674463398545399]
[null,"Sjukhusen i Väster","Västra Götaland",45.661496156243501,234.73141015310199,4.2340835837202997,0.86628482573159926]
[null,"Skaraborgs sjukhus","Västra Götaland",17.858717723514101,369.097566478646,2.1193467663308398,0.85461517707622603]
[null,"Södra Älvsborgs sjukhus","Västra Götaland",40.8749309390154,293.88850926672001,4.0896143733567101,0.86221009406340643]
[null,"Karlskoga lasarett","Örebro",1.0561559770575299,30.662175664786499,4.4427272727272697,0.85332979675281606]
[null,"Lindesbergs lasarett","Örebro",0.73057610682009,21.5018211120064,3.4379411764705901,0.85328608786371196]
[null,"Universitetssjukhuset Örebro","Örebro",73.241896316414795,383.15970991136197,2.8094280908326299,0.86604768592331849]
[null,"Capio Specialistvård Motala","Östergötland",4.5276463943410601,1.88557614826753,1.3450655624568699,0.92059861659657027]
[null,"Lasarettet i Finspång","Östergötland",0.73540014419610999,12.2965350523771,15.9375,0.85564306170268167]
[null,"Lasarettet i Motala","Östergötland",2.51799087430234,53.651893634166001,1.4201680672268899,0.85448281298125639]
[null,"Universitetssjukhuset i Linköping","Östergötland",93.122350772155102,311.29047542304602,3.75391183529115,0.87302655720597921]
[null,"Vrinnevisjukhuset i Norrköping","Östergötland",12.7073807836,207.699532634972,2.2950274725274702,{"$f":"(((D149/(SUM(D149,E149))*0.95)+(E149/SUM(D149,E149)*0.85)))","v":0.85576541841927967}]
[null,"Total","Sverige",{"$f":"SUBTOTAL(109,SjukhusTabell[Vårdplatsbehov planerad vård])","v":3507.8868124543951},{"$f":"SUBTOTAL(109,SjukhusTabell[Vårdplatsbehov oplanerad vård])","v":13429.507966693533}]

{"sheet":"Stödflik","index":9,"n_rows":12,"n_cols":3,"rows_kept":12,"cut":false,"hidden":true,"merged":[[0,1,0,10]]}
[null,"Stödflik\nI denna flik finns möjliga namn på vårdnivåer att mata in data för."]
[]
[]
[null,"Singular","Plural"]
[null,"enhet","enheter"]
[null,"sjukhus","sjukhus"]
[null,"klinik","kliniker"]
[null,"avdelning","avdelningar"]
[null,"centrumbildning","centrumbildningar"]
[null,"verksamhetsområde","verksamhetsområden"]
[null,"mottagning","mottagningar"]
[null,"sektion","sektioner"]